[Event "Cracovia Festival-A 2023"]
[Site "Krakow"]
[Date "2023.12.30"]
[Round "4.15"]
[White "Anwesh, Upadhyaya"]
[Black "Vasynda, Oleksandr"]
[Result "1/2-1/2"]
[ECO "B35"]
[WhiteElo "2350"]
[BlackElo "2153"]
[Annotator "RC"]
[PlyCount "91"]
[EventDate "2023.12.24"]
[EventType "swiss"]
[EventCountry "POL"]
[SourceTitle "playchess.com"]
[Source "ChessBase"]
[SourceQuality "1"]
[TimeControl "40/5400+30:1800+30"]

1. e4 {[%emt 0:10:55]} c5 {[%emt 0:00:10]} 2. Nf3 {[%emt 0:00:14]} Nc6 {[%emt 0:00:08]} 3. d4 {[%emt 0:00:19]} cxd4 {[%emt 0:00:05]} 4. Nxd4 {[%emt 0:00:05]} Nf6 {[%emt 0:00:10]} 5. Nc3 {[%emt 0:00:09]} g6 {[%emt 0:00:06]} 6. Be3 {[%emt 0:01:32]} Bg7 {[%emt 0:00:07]} 7. Bc4 {[%emt 0:00:17]} O-O {[%emt 0:00:07]} 8. Bb3 {[%emt 0:00:07]} a6 {[%emt 0:00:07]} 9. O-O {[%emt 0:00:22]} d6 {[%emt 0:00:19]} 10. h3 {[%emt 0:00:05]} Bd7 {[%emt 0:00:21]} 11. Re1 {[%emt 0:01:55]} b5 {[%emt 0:00:46]} 12. Nd5 {[%emt 0:02:07]} Rc8 {[%emt 0:03:24]} 13. Nxc6 {[%emt 0:04:04]} Bxc6 {[%emt 0:00:43]} 14. Bg5 {[%emt 0:00:17]} Bxd5 {[%emt 0:03:02]} 15. exd5 {[%emt 0:00:03]} Re8 {[%emt 0:01:00]} 16. c3 {[%emt 0:01:01]} Nd7 {[%emt 0:01:03]} 17. a4 {[%emt 0:02:45]} b4 {[%emt 0:02:38]} 18. cxb4 {[%emt 0:02:30]} Bxb2 {[%emt 0:00:13]} 19. Rb1 {[%emt 0:00:55]} Bf6 {[%emt 0:00:25]} 20. Bxf6 {[%emt 0:03:53]} Nxf6 {[%emt 0:00:19]} 21. a5 {[%emt 0:00:07]} Qc7 {[%emt 0:06:00]} 22. Qd4 {[%emt 0:09:00]} Qc3 {[%emt 0:04:03]} 23. Qf4 {[%emt 0:07:16]} Qd3 {[%emt 0:03:01]} 24. Red1 {[%emt 0:03:54]} Qe4 {[%emt 0:02:45]} 25. Qd2 {[%emt 0:00:25]} Rb8 {[%emt 0:02:22]} 26. Bc2 {[%emt 0:04:24]} Qh4 {[%emt 0:03:07]} 27. Ba4 {[%emt 0:00:40]} Rec8 {[%emt 0:01:00]} 28. Bc6 {[%emt 0:00:10]} e6 {[%emt 0:04:50]} 29. b5 {[%emt 0:01:08]} axb5 {[%emt 0:21:06]} 30. a6 {[%emt 0:02:47]} Nxd5 {[%emt 0:00:15]} 31. a7 {[%emt 0:00:18]} Ra8 {[%emt 0:00:06]} 32. Bxa8 {[%emt 0:00:41]} Rxa8 {[%emt 0:00:03]} 33. Ra1 {[%emt 0:04:44]} Qe7 {[%emt 0:04:08]} 34. Qd4 {[%emt 0:01:57]} b4 {[%emt 0:03:03]} 35. Ra6 {[%emt 0:01:14]} Qc7 {[%emt 0:03:19]} 36. Rda1 {[%emt 0:01:52]} h6 {[%emt 0:01:45]} 37. Qd3 {[%emt 0:01:55]} Qb7 {[%emt 0:02:08]} 38. Qg3 {[%emt 0:09:59]} b3 {[%emt 0:06:59]} 39. Qxd6 {[%emt 0:03:43]} Kh7 {[%emt 0:05:25]} 40. Qa3 {[%emt 0:00:00]} Nf4 {[%emt 0:00:00]} 41. f3 {[%emt 0:10:38]} Qb5 {[%emt 0:14:42]} 42. Qb2 {[%emt 0:08:50]} Nd3 {[%emt 0:00:53]} 43. Qf6 {[%emt 0:00:39]} b2 {[%emt 0:00:56]} 44. Qxf7+ {[%emt 0:05:42]} Kh8 {[%emt 0:00:03]} 45. Qf6+ {[%emt 0:00:05]} Kh7 {[%emt 0:00:04]} 46. Qf7+ {[%emt 0:05:25]} 1/2-1/2

[Event "Cracovia Festival-A 2023"]
[Site "Krakow"]
[Date "2023.12.30"]
[Round "4.16"]
[White "Steindl, Johannes"]
[Black "Buchenau, Frank"]
[Result "1-0"]
[ECO "B18"]
[WhiteElo "2334"]
[BlackElo "2135"]
[Annotator "ChessBase"]
[PlyCount "43"]
[EventDate "2023.12.24"]
[EventType "swiss"]
[EventCountry "POL"]
[SourceTitle "playchess.com"]
[Source "ChessBase"]
[SourceQuality "1"]
[TimeControl "40/5400+30:1800+30"]

1. e4 {[%emt 0:00:02]} c6 {[%emt 0:00:06]} 2. d4 {[%emt 0:00:11]} d5 {[%emt 0:00:42]} 3. Nd2 {[%emt 0:00:33]} dxe4 {[%emt 0:00:11]} 4. Nxe4 {[%emt 0:00:03]} Bf5 {[%emt 0:00:09]} 5. Ng3 {[%emt 0:00:04]} Bg6 {[%emt 0:00:21]} 6. h4 {[%emt 0:00:04]} h6 {[%emt 0:00:07]} 7. Nf3 {[%emt 0:00:07]} e6 {[%emt 0:02:35]} 8. Ne5 {[%emt 0:00:07]} Bh7 {[%emt 0:00:10]} 9. Bd3 {[%emt 0:00:04]} Bxd3 {[%emt 0:00:21]} 10. Qxd3 {[%emt 0:00:03]} Nf6 {[%emt 0:00:53]} 11. Bd2 {[%emt 0:00:48]} Be7 {[%emt 0:00:39]} 12. O-O-O {[%emt 0:01:03]} O-O {[%emt 0:00:33]} 13. Kb1 {[%emt 0:24:08]} c5 {[%emt 0:00:23]} 14. d5 {[%emt 0:07:34]} Qxd5 {[%emt 0:10:35]} 15. Qe2 {[%emt 0:00:27]} Nc6 {[%emt 0:06:10]} 16. Bf4 {[%emt 0:02:41]} Nd4 {[%emt 0:01:37]} 17. Qe3 {[%emt 0:00:06]} Qd8 {[%emt 0:03:42]} 18. c3 {[%emt 0:02:54]} Nd5 {[%emt 0:00:59]} 19. Qc1 {[%emt 0:00:04]} Nxf4 {[%emt 0:22:32]} 20. Qxf4 {[%emt 0:00:32]} Bd6 {[%emt 0:01:03]} 21. cxd4 {[%emt 0:00:37]} f6 {[%emt 0:02:34]} 22. Qg4 {[%emt 0:00:36]} 1-0

[Event "Cracovia Festival-A 2023"]
[Site "Krakow"]
[Date "2023.12.30"]
[Round "4.17"]
[White "Nemsadze, Daviti"]
[Black "Lewicki, Miroslaw"]
[Result "0-1"]
[ECO "B90"]
[WhiteElo "2253"]
[BlackElo "2321"]
[Annotator "ChessBase"]
[PlyCount "84"]
[EventDate "2023.12.24"]
[EventType "swiss"]
[EventCountry "POL"]
[SourceTitle "playchess.com"]
[Source "ChessBase"]
[SourceQuality "1"]
[TimeControl "40/5400+30:1800+30"]

1. e4 {[%emt 0:00:47]} c5 {[%emt 0:00:07]} 2. Nf3 {[%emt 0:00:18]} d6 {[%emt 0:00:16]} 3. d4 {[%emt 0:00:05]} cxd4 {[%emt 0:01:54]} 4. Nxd4 {[%emt 0:00:07]} Nf6 {[%emt 0:00:25]} 5. Nc3 {[%emt 0:00:04]} a6 {[%emt 0:00:02]} 6. h3 {[%emt 0:00:03]} e5 {[%emt 0:00:13]} 7. Nb3 {[%emt 0:00:07]} Be7 {[%emt 0:01:36]} 8. g4 {[%emt 0:01:05]} h6 {[%emt 0:00:04]} 9. Be3 {[%emt 0:03:48]} Nbd7 {[%emt 0:00:28]} 10. Bg2 {[%emt 0:08:27]} Nf8 {[%emt 0:01:30]} 11. f4 {[%emt 0:15:46]} exf4 {[%emt 0:01:37]} 12. Bxf4 {[%emt 0:00:54]} Ng6 {[%emt 0:00:56]} 13. Bg3 {[%emt 0:00:21]} O-O {[%emt 0:01:36]} 14. O-O {[%emt 0:04:16]} Be6 {[%emt 0:00:22]} 15. Kh1 {[%emt 0:13:17]} Rc8 {[%emt 0:04:54]} 16. Nd4 {[%emt 0:10:51]} Qb6 {[%emt 0:02:33]} 17. Rb1 {[%emt 0:04:52]} Ne5 {[%emt 0:03:41]} 18. Nf5 {[%emt 0:02:06]} Bxf5 {[%emt 0:00:11]} 19. exf5 {[%emt 0:00:05]} Rc4 {[%emt 0:03:42]} 20. Qe2 {[%emt 0:08:14]} Rfc8 {[%emt 0:00:16]} 21. Bf2 {[%emt 0:04:14]} Qc7 {[%emt 0:00:30]} 22. Rfd1 {[%emt 0:01:23]} b5 {[%emt 0:00:45]} 23. a3 {[%emt 0:01:03]} b4 {[%emt 0:09:24]} 24. axb4 {[%emt 0:00:26]} Rxb4 {[%emt 0:00:05]} 25. Qxa6 {[%emt 0:01:09]} d5 {[%emt 0:08:41]} 26. Bg3 {[%emt 0:04:10]} Bd6 {[%emt 0:00:03]} 27. Nxd5 {[%emt 0:00:57]} Nxd5 {[%emt 0:00:06]} 28. Rxd5 {[%emt 0:00:04]} Rb6 {[%emt 0:01:05]} 29. Qe2 {[%emt 0:01:40]} Nc4 {[%emt 0:00:10]} 30. Bxd6 {[%emt 0:02:32]} Nxd6 {[%emt 0:00:08]} 31. Rbd1 {[%emt 0:00:53]} Ne8 {[%emt 0:04:32]} 32. Rd7 {[%emt 0:04:02]} Qxc2 {[%emt 0:00:46]} 33. Qe7 {[%emt 0:03:01]} Rxb2 {[%emt 0:00:14]} 34. Qxf7+ {[%emt 0:00:45]} Kh8 {[%emt 0:03:30]} 35. Rg1 {[%emt 0:03:44]} Rb1 {[%emt 0:01:16]} 36. Qf8+ {[%emt 0:00:48]} Kh7 {[%emt 0:00:07]} 37. Qa3 {[%emt 0:00:39]} Rc3 {[%emt 0:01:08]} 38. Qa7 {[%emt 0:00:54]} Rb2 {[%emt 0:05:07]} 39. Kh2 {[%emt 0:01:11]} Qb3 {[%emt 0:00:06]} 40. Ra1 {[%emt 0:00:00]} Rxh3+ {[%emt 0:00:00]} 41. Kg1 {[%emt 0:00:51]} Rxg2+ {[%emt 0:00:12]} 42. Kxg2 {[%emt 0:00:06]} Qf3+ {[%emt 0:00:04]} 0-1

[Event "Cracovia Festival-A 2023"]
[Site "Krakow"]
[Date "2023.12.30"]
[Round "4.18"]
[White "Eke, Salih"]
[Black "Lukasiewicz, Krzysztof"]
[Result "0-1"]
[ECO "D37"]
[WhiteElo "2217"]
[BlackElo "2290"]
[Annotator "RC"]
[PlyCount "76"]
[EventDate "2023.12.24"]
[EventType "swiss"]
[EventCountry "POL"]
[SourceTitle "playchess.com"]
[Source "ChessBase"]
[SourceQuality "1"]
[TimeControl "40/5400+30:1800+30"]

1. d4 {[%emt 0:08:54]} d5 {[%emt 0:00:22]} 2. c4 {[%emt 0:00:16]} e6 {[%emt 0:00:03]} 3. Nf3 {[%emt 0:00:05]} Nf6 {[%emt 0:00:04]} 4. Nc3 {[%emt 0:00:06]} a6 {[%emt 0:00:04]} 5. cxd5 {[%emt 0:01:35]} exd5 {[%emt 0:00:05]} 6. Bg5 {[%emt 0:00:07]} Be6 {[%emt 0:02:10]} 7. e3 {[%emt 0:01:24]} Nbd7 {[%emt 0:00:20]} 8. Bd3 {[%emt 0:00:47]} Bd6 {[%emt 0:00:13]} 9. Bf4 {[%emt 0:02:14]} Bxf4 {[%emt 0:01:16]} 10. exf4 {[%emt 0:00:06]} Bg4 {[%emt 0:00:02]} 11. Qe2+ {[%emt 0:02:26]} Kf8 {[%emt 0:01:32]} 12. O-O {[%emt 0:02:48]} g6 {[%emt 0:07:34]} 13. Qe3 {[%emt 0:05:41]} Bxf3 {[%emt 0:00:15]} 14. Qxf3 {[%emt 0:00:02]} c6 {[%emt 0:00:10]} 15. g4 {[%emt 0:03:50]} Kg7 {[%emt 0:06:28]} 16. g5 {[%emt 0:15:13]} Nh5 {[%emt 0:00:05]} 17. Ne2 {[%emt 0:00:05]} h6 {[%emt 0:10:17]} 18. Qg4 {[%emt 0:03:26]} Nf8 {[%emt 0:04:37]} 19. Ng3 {[%emt 0:07:57]} hxg5 {[%emt 0:06:28]} 20. fxg5 {[%emt 0:00:37]} Ne6 {[%emt 0:07:30]} 21. f4 {[%emt 0:09:32]} Qb6 {[%emt 0:05:23]} 22. f5 {[%emt 0:11:42]} Qxd4+ {[%emt 0:07:12]} 23. Qxd4+ {[%emt 0:00:02]} Nxd4 {[%emt 0:00:05]} 24. f6+ {[%emt 0:00:25]} Kf8 25. Rae1 {[%emt 0:00:13]} Re8 {[%emt 0:15:34]} 26. Rxe8+ {[%emt 0:02:20]} Kxe8 {[%emt 0:00:03]} 27. Re1+ {[%emt 0:00:21]} Kd7 {[%emt 0:00:07]} 28. Re7+ {[%emt 0:07:43]} Kd6 {[%emt 0:00:08]} 29. Rxf7 {[%emt 0:03:34]} Nxg3 {[%emt 0:02:13]} 30. hxg3 {[%emt 0:05:00]} Nf3+ {[%emt 0:00:05]} 31. Kf2 {[%emt 0:00:41]} Ne5 {[%emt 0:00:02]} 32. Bxg6 {[%emt 0:00:05]} Nxg6 {[%emt 0:00:03]} 33. Rg7 {[%emt 0:03:22]} Ne5 {[%emt 0:00:22]} 34. Ke3 {[%emt 0:02:08]} b6 {[%emt 0:04:14]} 35. f7 {[%emt 0:01:50]} Rf8 {[%emt 0:07:04]} 36. g6 {[%emt 0:00:23]} Ke7 {[%emt 0:00:18]} 37. Kd4 {[%emt 0:01:15]} Kf6 {[%emt 0:00:48]} 38. Rg8 {[%emt 0:00:43]} Nxg6 {[%emt 0:00:07]} 0-1

[Event "Cracovia Festival-A 2023"]
[Site "Krakow"]
[Date "2023.12.30"]
[Round "4.19"]
[White "Valiyev, Shahin"]
[Black "Antolak, Julia"]
[Result "0-1"]
[ECO "C78"]
[WhiteElo "2158"]
[BlackElo "2287"]
[Annotator "RC"]
[PlyCount "120"]
[EventDate "2023.12.24"]
[EventType "swiss"]
[EventCountry "POL"]
[SourceTitle "playchess.com"]
[Source "ChessBase"]
[SourceQuality "1"]
[TimeControl "40/5400+30:1800+30"]

1. e4 {[%emt 0:00:27]} e5 {[%emt 0:00:38]} 2. Nf3 {[%emt 0:00:30]} Nc6 {[%emt 0:00:06]} 3. Bb5 {[%emt 0:01:14]} a6 {[%emt 0:00:40]} 4. Ba4 {[%emt 0:00:09]} Nf6 {[%emt 0:00:11]} 5. O-O {[%emt 0:00:08]} Bc5 {[%emt 0:00:22]} 6. c3 {[%emt 0:00:43]} O-O {[%emt 0:00:25]} 7. d4 {[%emt 0:05:20]} Ba7 {[%emt 0:00:07]} 8. Re1 {[%emt 0:03:32]} b5 {[%emt 0:00:27]} 9. Bb3 {[%emt 0:02:31]} d6 {[%emt 0:00:30]} 10. h3 {[%emt 0:01:20]} h6 {[%emt 0:12:03]} 11. Be3 {[%emt 0:05:44]} Bd7 {[%emt 0:05:45]} 12. Nbd2 {[%emt 0:06:37]} Re8 {[%emt 0:03:16]} 13. dxe5 {[%emt 0:01:36]} Bxe3 {[%emt 0:04:03]} 14. Rxe3 {[%emt 0:06:42]} Nxe5 {[%emt 0:00:42]} 15. Nxe5 {[%emt 0:00:13]} dxe5 {[%emt 0:00:33]} 16. Nf1 {[%emt 0:03:24]} c5 {[%emt 0:02:49]} 17. Ng3 {[%emt 0:09:46]} c4 {[%emt 0:05:22]} 18. Bc2 {[%emt 0:00:06]} Qb6 {[%emt 0:00:11]} 19. Qf3 {[%emt 0:08:06]} Rad8 20. Rd1 {[%emt 0:00:28]} Be6 {[%emt 0:11:54]} 21. Ree1 {[%emt 0:00:25]} a5 {[%emt 0:01:42]} 22. a3 {[%emt 0:01:45]} b4 {[%emt 0:04:35]} 23. axb4 {[%emt 0:08:49]} axb4 {[%emt 0:00:07]} 24. Nf1 {[%emt 0:01:04]} b3 {[%emt 0:04:45]} 25. Bb1 {[%emt 0:00:12]} Rxd1 {[%emt 0:00:40]} 26. Rxd1 {[%emt 0:00:06]} Rd8 {[%emt 0:00:04]} 27. Re1 {[%emt 0:06:02]} Rd6 {[%emt 0:07:27]} 28. Qe2 {[%emt 0:01:10]} Nd7 {[%emt 0:03:25]} 29. Ne3 {[%emt 0:02:42]} Nc5 {[%emt 0:02:17]} 30. Kh2 {[%emt 0:04:26]} Qd8 {[%emt 0:05:02]} 31. Nd5 {[%emt 0:08:07]} f5 {[%emt 0:08:37]} 32. f3 {[%emt 0:00:46]} Qh4 {[%emt 0:03:19]} 33. Rd1 {[%emt 0:03:15]} Bxd5 {[%emt 0:03:46]} 34. exd5 {[%emt 0:03:18]} Nd7 {[%emt 0:00:58]} 35. g3 {[%emt 0:01:38]} Qh5 {[%emt 0:01:08]} 36. Qxc4 {[%emt 0:01:11]} Qxf3 {[%emt 0:00:27]} 37. Rf1 {[%emt 0:01:00]} Qxd5 {[%emt 0:00:57]} 38. Qxd5+ {[%emt 0:01:56]} Rxd5 {[%emt 0:00:05]} 39. Bxf5 {[%emt 0:00:03]} Nc5 {[%emt 0:03:28]} 40. Rf2 {[%emt 0:00:00]} e4 {[%emt 0:00:00]} 41. Bg4 {[%emt 0:04:47]} e3 {[%emt 0:17:35]} 42. Re2 {[%emt 0:00:12]} h5 {[%emt 0:01:03]} 43. Bf3 {[%emt 0:00:04]} Re5 {[%emt 0:00:06]} 44. Kg2 {[%emt 0:05:29]} Nd3 {[%emt 0:01:01]} 45. c4 {[%emt 0:05:00]} Kf8 {[%emt 0:01:28]} 46. h4 {[%emt 0:06:46]} g6 {[%emt 0:01:44]} 47. Kf1 {[%emt 0:02:40]} Ke7 {[%emt 0:00:44]} 48. Rg2 {[%emt 0:05:17]} Rf5 {[%emt 0:05:19]} 49. Ke2 {[%emt 0:00:06]} Nxb2 {[%emt 0:00:23]} 50. Be4 {[%emt 0:00:35]} Nxc4 {[%emt 0:03:59]} 51. Bxf5 {[%emt 0:02:44]} gxf5 {[%emt 0:00:02]} 52. Rg1 {[%emt 0:00:23]} Na3 {[%emt 0:00:32]} 53. Ra1 {[%emt 0:01:50]} b2 {[%emt 0:00:06]} 54. Rxa3 {[%emt 0:00:19]} b1=Q {[%emt 0:00:06]} 55. Rxe3+ {[%emt 0:00:04]} Kf6 {[%emt 0:00:14]} 56. Kf2 {[%emt 0:00:44]} Qh1 {[%emt 0:00:18]} 57. Rf3 {[%emt 0:00:06]} Qh2+ {[%emt 0:00:28]} 58. Kf1 {[%emt 0:00:05]} Ke5 {[%emt 0:00:08]} 59. Re3+ {[%emt 0:00:41]} Kd4 {[%emt 0:00:06]} 60. Rf3 {[%emt 0:00:04]} Ke5 0-1

[Event "Cracovia Festival-A 2023"]
[Site "Krakow"]
[Date "2023.12.30"]
[Round "4.20"]
[White "Zdybel, Przemyslaw"]
[Black "Sofronie, Iulian"]
[Result "1-0"]
[ECO "C45"]
[WhiteElo "2180"]
[BlackElo "2438"]
[Annotator "RC"]
[PlyCount "115"]
[EventDate "2023.12.24"]
[EventType "swiss"]
[EventCountry "POL"]
[SourceTitle "playchess.com"]
[Source "ChessBase"]
[SourceQuality "1"]
[TimeControl "40/5400+30:1800+30"]

1. e4 {[%emt 0:00:09]} e5 {[%emt 0:00:06]} 2. Nf3 {[%emt 0:00:14]} Nc6 {[%emt 0:00:04]} 3. d4 {[%emt 0:00:20]} exd4 {[%emt 0:00:08]} 4. Nxd4 {[%emt 0:00:19]} Nf6 {[%emt 0:00:04]} 5. Nxc6 {[%emt 0:00:22]} bxc6 {[%emt 0:00:04]} 6. Nd2 {[%emt 0:00:04]} d5 {[%emt 0:04:00]} 7. exd5 {[%emt 0:00:13]} cxd5 {[%emt 0:00:06]} 8. Bb5+ {[%emt 0:00:06]} Bd7 {[%emt 0:00:07]} 9. Bxd7+ {[%emt 0:00:06]} Qxd7 {[%emt 0:00:08]} 10. O-O {[%emt 0:00:05]} Be7 {[%emt 0:00:21]} 11. b3 {[%emt 0:00:49]} O-O {[%emt 0:00:27]} 12. Bb2 {[%emt 0:00:21]} Qf5 {[%emt 0:01:42]} 13. Nf3 {[%emt 0:15:16]} Ne4 {[%emt 0:06:33]} 14. Qd3 {[%emt 0:16:39]} Rad8 {[%emt 0:16:14]} 15. Nd4 {[%emt 0:29:32]} Qg6 {[%emt 0:02:09]} 16. f3 {[%emt 0:03:32]} c5 {[%emt 0:01:47]} 17. Ne2 {[%emt 0:05:17]} c4 {[%emt 0:04:13]} 18. Qe3 {[%emt 0:06:59]} Bg5 {[%emt 0:03:13]} 19. f4 {[%emt 0:03:34]} Be7 {[%emt 0:03:58]} 20. Bd4 {[%emt 0:01:31]} Rfe8 {[%emt 0:02:48]} 21. Rad1 {[%emt 0:02:39]} Nd6 {[%emt 0:09:28]} 22. Qd2 {[%emt 0:02:38]} a6 {[%emt 0:02:11]} 23. Ng3 {[%emt 0:02:35]} Qg4 {[%emt 0:07:54]} 24. Bb6 {[%emt 0:00:59]} Rb8 {[%emt 0:02:23]} 25. Bc7 {[%emt 0:00:46]} Rbc8 {[%emt 0:00:25]} 26. Bxd6 {[%emt 0:00:09]} Bxd6 {[%emt 0:00:05]} 27. Qxd5 {[%emt 0:00:17]} Bxf4 {[%emt 0:00:52]} 28. Qf5 {[%emt 0:02:19]} Be3+ {[%emt 0:06:32]} 29. Kh1 {[%emt 0:00:01]} Qxf5 {[%emt 0:03:00]} 30. Nxf5 {[%emt 0:00:02]} Bc5 {[%emt 0:00:06]} 31. bxc4 {[%emt 0:03:43]} a5 {[%emt 0:01:20]} 32. Rd2 {[%emt 0:02:32]} a4 {[%emt 0:01:33]} 33. g3 {[%emt 0:00:41]} Rc7 {[%emt 0:00:53]} 34. Rfd1 {[%emt 0:00:35]} g6 {[%emt 0:00:25]} 35. Rd8 {[%emt 0:00:31]} Rc8 {[%emt 0:00:30]} 36. Rxc8 {[%emt 0:01:43]} Rxc8 {[%emt 0:00:06]} 37. Nh4 {[%emt 0:00:03]} Be7 {[%emt 0:02:19]} 38. Ng2 {[%emt 0:00:31]} Rxc4 {[%emt 0:00:30]} 39. Ne3 {[%emt 0:00:08]} Rc6 {[%emt 0:00:57]} 40. Nd5 {[%emt 0:00:00]} Bf8 {[%emt 0:00:00]} 41. c3 {[%emt 0:14:22]} Re6 {[%emt 0:03:14]} 42. Nf4 Re3 {[%emt 0:02:56]} 43. Rc1 {[%emt 0:12:40]} g5 {[%emt 0:00:52]} 44. Nd5 {[%emt 0:00:05]} Re2 {[%emt 0:00:16]} 45. c4 {[%emt 0:00:04]} Bc5 {[%emt 0:04:49]} 46. Nc3 {[%emt 0:00:47]} Rf2 {[%emt 0:02:54]} 47. Nxa4 {[%emt 0:00:50]} Ba3 {[%emt 0:00:24]} 48. Rc3 {[%emt 0:05:28]} Rxa2 {[%emt 0:00:08]} 49. Rb3 {[%emt 0:00:36]} Be7 {[%emt 0:01:39]} 50. Nc3 {[%emt 0:00:21]} Rc2 {[%emt 0:00:14]} 51. g4 {[%emt 0:00:36]} Kg7 {[%emt 0:00:39]} 52. Nd5 {[%emt 0:00:41]} Bc5 {[%emt 0:00:46]} 53. Rc3 {[%emt 0:00:53]} Ra2 {[%emt 0:01:07]} 54. Ne3 {[%emt 0:00:30]} Kf6 {[%emt 0:00:27]} 55. Nd5+ {[%emt 0:01:00]} Ke5 {[%emt 0:00:50]} 56. Rf3 {[%emt 0:00:13]} h5 {[%emt 0:03:18]} 57. Rf5+ {[%emt 0:00:34]} Ke4 {[%emt 0:00:46]} 58. Nc3+ {[%emt 0:00:06]} 1-0

[Event "Cracovia Festival-A 2023"]
[Site "Krakow"]
[Date "2023.12.30"]
[Round "4.21"]
[White "Yezhel, Valiantsin"]
[Black "Pacan-Milej, Kosma"]
[Result "0-1"]
[ECO "E70"]
[WhiteElo "2311"]
[BlackElo "2425"]
[Annotator "RC"]
[PlyCount "192"]
[EventDate "2023.12.24"]
[EventType "swiss"]
[EventCountry "POL"]
[SourceTitle "playchess.com"]
[Source "ChessBase"]
[SourceQuality "1"]
[TimeControl "40/5400+30:1800+30"]

1. d4 {[%emt 0:05:41]} Nf6 {[%emt 0:00:05]} 2. c4 {[%emt 0:00:13]} g6 {[%emt 0:00:04]} 3. Nc3 {[%emt 0:00:09]} Bg7 {[%emt 0:00:05]} 4. e4 {[%emt 0:00:05]} O-O {[%emt 0:00:09]} 5. Be3 {[%emt 0:00:27]} d6 {[%emt 0:00:09]} 6. h3 {[%emt 0:00:47]} Na6 {[%emt 0:00:06]} 7. Nf3 {[%emt 0:03:19]} e5 {[%emt 0:00:08]} 8. d5 {[%emt 0:00:44]} Nh5 {[%emt 0:00:17]} 9. Nd2 {[%emt 0:09:58]} Qe8 {[%emt 0:01:40]} 10. g4 {[%emt 0:24:32]} Nf4 {[%emt 0:00:32]} 11. Qb3 {[%emt 0:00:12]} Qe7 {[%emt 0:03:46]} 12. O-O-O {[%emt 0:00:18]} Nc5 {[%emt 0:00:51]} 13. Qc2 {[%emt 0:01:21]} a5 {[%emt 0:00:12]} 14. Kb1 {[%emt 0:01:09]} b6 {[%emt 0:04:40]} 15. a3 {[%emt 0:05:23]} Bd7 {[%emt 0:07:35]} 16. Nb3 {[%emt 0:13:41]} Na6 {[%emt 0:02:33]} 17. Nc1 {[%emt 0:00:17]} f5 {[%emt 0:01:26]} 18. f3 {[%emt 0:01:24]} fxe4 {[%emt 0:02:07]} 19. fxe4 {[%emt 0:02:03]} Bf6 {[%emt 0:01:19]} 20. Qd2 {[%emt 0:03:09]} Rf7 {[%emt 0:06:24]} 21. Bd3 {[%emt 0:00:15]} Nc5 {[%emt 0:01:34]} 22. Bc2 {[%emt 0:00:45]} a4 {[%emt 0:01:15]} 23. Rdg1 {[%emt 0:00:16]} Bg5 {[%emt 0:00:41]} 24. Nd3 {[%emt 0:02:16]} Nb7 {[%emt 0:21:55]} 25. h4 {[%emt 0:11:16]} Bxh4 {[%emt 0:00:10]} 26. Nxf4 {[%emt 0:00:02]} exf4 {[%emt 0:00:09]} 27. Bxf4 {[%emt 0:00:03]} Bf6 {[%emt 0:00:50]} 28. e5 {[%emt 0:02:04]} Bxe5 {[%emt 0:00:42]} 29. Bg5 {[%emt 0:00:14]} Qf8 {[%emt 0:02:21]} 30. Bh6 {[%emt 0:03:37]} Rf2 {[%emt 0:02:54]} 31. Qe1 {[%emt 0:00:30]} Qf3 {[%emt 0:01:09]} 32. Be4 {[%emt 0:01:14]} Bxc3 {[%emt 0:08:26]} 33. bxc3 {[%emt 0:00:05]} Qe2 {[%emt 0:00:05]} 34. Qxe2 {[%emt 0:00:34]} Rxe2 {[%emt 0:00:06]} 35. Bd3 {[%emt 0:00:04]} Re7 {[%emt 0:00:08]} 36. Rh2 {[%emt 0:03:11]} Nc5 {[%emt 0:02:04]} 37. Kc2 {[%emt 0:01:50]} Rae8 {[%emt 0:01:12]} 38. Rf2 {[%emt 0:00:23]} Rf7 {[%emt 0:04:15]} 39. Rxf7 {[%emt 0:00:35]} Kxf7 {[%emt 0:00:04]} 40. Rf1+ {[%emt 0:00:00]} Kg8 {[%emt 0:00:00]} 41. Rf4 {[%emt 0:00:09]} Nb7 {[%emt 0:00:56]} 42. Bg5 {[%emt 0:07:18]} Nd8 {[%emt 0:00:53]} 43. Bf6 {[%emt 0:00:24]} Nf7 {[%emt 0:00:52]} 44. g5 {[%emt 0:00:31]} Ne5 {[%emt 0:00:25]} 45. Kd2 {[%emt 0:05:53]} Ng4 {[%emt 0:01:18]} 46. Bd4 {[%emt 0:00:10]} Ne5 {[%emt 0:01:54]} 47. Be3 {[%emt 0:07:19]} Bg4 {[%emt 0:02:50]} 48. Bf2 {[%emt 0:09:08]} Rf8 {[%emt 0:03:04]} 49. Rxf8+ {[%emt 0:00:41]} Kxf8 {[%emt 0:00:01]} 50. Ke3 {[%emt 0:01:57]} Bf5 {[%emt 0:02:55]} 51. Be2 {[%emt 0:00:09]} Kg7 {[%emt 0:00:15]} 52. Kf4 {[%emt 0:02:45]} Bd3 {[%emt 0:17:07]} 53. Bd1 {[%emt 0:00:37]} h6 {[%emt 0:00:50]} 54. gxh6+ {[%emt 0:01:02]} Kxh6 {[%emt 0:00:11]} 55. c5 {[%emt 0:01:19]} g5+ {[%emt 0:06:15]} 56. Ke3 {[%emt 0:00:04]} bxc5 {[%emt 0:00:36]} 57. Bxa4 {[%emt 0:00:21]} Ba6 {[%emt 0:01:11]} 58. Ke4 {[%emt 0:02:31]} Bd3+ {[%emt 0:00:41]} 59. Ke3 {[%emt 0:00:01]} Bf1 {[%emt 0:00:14]} 60. Ke4 {[%emt 0:00:34]} Bg2+ {[%emt 0:01:23]} 61. Kf5 {[%emt 0:00:03]} Bh3+ {[%emt 0:00:32]} 62. Ke4 {[%emt 0:00:04]} Nc4 {[%emt 0:00:21]} 63. Bb5 {[%emt 0:03:36]} Nxa3 {[%emt 0:00:18]} 64. Bd3 {[%emt 0:00:08]} Kg6 {[%emt 0:01:35]} 65. Kf3+ {[%emt 0:00:05]} Bf5 {[%emt 0:00:09]} 66. Be2 {[%emt 0:01:06]} Kf6 {[%emt 0:00:20]} 67. Be3 {[%emt 0:00:55]} Bg6 {[%emt 0:08:51]} 68. Kg4 {[%emt 0:00:23]} Bf5+ {[%emt 0:00:15]} 69. Kf3 {[%emt 0:00:00]} Nc2 {[%emt 0:00:28]} 70. Bd2 {[%emt 0:00:12]} Ke5 {[%emt 0:00:32]} 71. Bxg5 {[%emt 0:00:10]} Be4+ {[%emt 0:00:12]} 72. Kf2 {[%emt 0:00:12]} Kxd5 {[%emt 0:00:10]} 73. Ba6 {[%emt 0:00:27]} Na3 {[%emt 0:00:46]} 74. Ke3 {[%emt 0:00:35]} Bg6 {[%emt 0:00:19]} 75. Ke2 {[%emt 0:00:45]} c4 {[%emt 0:01:22]} 76. Bf6 {[%emt 0:02:03]} Bf5 {[%emt 0:00:07]} 77. Bb7+ {[%emt 0:00:35]} c6 {[%emt 0:00:05]} 78. Bd4 {[%emt 0:00:38]} Nb5 {[%emt 0:00:20]} 79. Bg7 {[%emt 0:00:16]} Kc5 {[%emt 0:01:34]} 80. Ba6 {[%emt 0:00:04]} Nc7 {[%emt 0:00:10]} 81. Bd4+ {[%emt 0:00:05]} Kd5 {[%emt 0:00:05]} 82. Bb7 {[%emt 0:00:04]} Ne6 {[%emt 0:00:15]} 83. Bb6 {[%emt 0:01:20]} Nc5 {[%emt 0:02:38]} 84. Ba8 {[%emt 0:00:01]} Nd7 {[%emt 0:01:06]} 85. Bd4 {[%emt 0:00:32]} Nc5 {[%emt 0:01:01]} 86. Ke3 {[%emt 0:00:33]} Bc8 {[%emt 0:00:18]} 87. Ke2 {[%emt 0:00:33]} Bd7 {[%emt 0:01:17]} 88. Ke3 {[%emt 0:00:19]} Na4 {[%emt 0:00:33]} 89. Bb7 {[%emt 0:00:15]} Ke6 {[%emt 0:02:09]} 90. Kd2 {[%emt 0:01:58]} d5 {[%emt 0:00:55]} 91. Bf2 {[%emt 0:00:16]} Kd6 {[%emt 0:00:21]} 92. Bg3+ {[%emt 0:00:13]} Kc5 {[%emt 0:00:08]} 93. Bc7 {[%emt 0:00:08]} Kb5 {[%emt 0:00:09]} 94. Kc2 {[%emt 0:00:18]} Nc5 {[%emt 0:00:30]} 95. Ba8 {[%emt 0:00:13]} Ka6 {[%emt 0:00:27]} 96. Bb8 {[%emt 0:00:05]} Na4 {[%emt 0:00:06]} 0-1